bitfinex/quotes_BTCUSD_20230111
["timestamp","ask_amount","ask_price","bid_price","bid_amount"]
[1673399403693,0.385428,17493.0,17492.0,2.17007914]
[1673399404463,0.385428,17493.0,17492.0,2.74176814]
[1673399404713,0.026676,17493.0,17492.0,2.74176814]
[1673399406258,0.385428,17493.0,17492.0,2.74176814]
[1673399407794,0.026676,17493.0,17492.0,2.74176814]
[1673399408307,0.385428,17493.0,17492.0,2.74176814]
[1673399410303,0.026676,17493.0,17492.0,2.74176814]
[1673399410808,0.385428,17493.0,17492.0,2.17007914]
[1673399412838,0.026676,17493.0,17492.0,2.17007914]
[1673399413545,0.385428,17493.0,17492.0,2.74176814]
[1673399413800,0.026676,17493.0,17492.0,2.74176814]
[1673399414288,0.385428,17493.0,17492.0,2.74176814]
[1673399414793,0.55640564,17493.0,17492.0,2.74176814]
[1673399418382,0.55640564,17493.0,17492.0,2.74185073]
[1673399418633,0.19765364,17493.0,17492.0,2.74176814]
[1673399419428,0.55640564,17493.0,17492.0,2.74176814]
[1673399419655,0.81287211,17493.0,17492.0,2.14176814]
[1673399420714,0.81287211,17493.0,17492.0,1.43256445]
[1673399420966,1.63226739,17493.0,17492.0,1.43256445]
[1673399421740,1.80324504,17493.0,17492.0,1.43256445]
[1673399422263,1.63261991,17493.0,17492.0,1.43256445]
[1673399422535,1.42030187,17493.0,17492.0,0.00334645]
[1673399422789,1.590927,17493.0,17492.0,0.00334645]
[1673399423868,2.46181957,17493.0,17492.0,0.00334645]
[1673399424131,2.46181974,17493.0,17492.0,0.00334645]
[1673399424441,2.00888463,17493.0,17492.0,0.00334645]
[1673399424726,4.01437997,17493.0,17492.0,0.00334645]
[1673399426902,2.17088463,17493.0,17492.0,0.00334645]
[1673399427158,2.87157373,17493.0,17492.0,0.00334645]
[1673399427440,2.87157402,17493.0,17492.0,0.00334645]
[1673399427701,2.17088463,17493.0,17492.0,0.00334645]
[1673399428233,2.00043434,17493.0,17492.0,0.00334645]
[1673399429320,1.6335274,17493.0,17492.0,0.00334645]
[1673399429602,1.6335274,17493.0,17492.0,0.00342904]
[1673399429855,1.6335274,17493.0,17492.0,0.00334645]
[1673399429856,1.46290895,17493.0,17492.0,0.00334645]
[1673399430725,1.6335274,17493.0,17492.0,0.00334645]
[1673399431243,1.30094949,17493.0,17492.0,0.00342904]
[1673399431529,1.3009505,17493.0,17492.0,0.57503545]
[1673399431774,1.4715274,17493.0,17492.0,0.57503545]
[1673399432315,1.30094943,17493.0,17492.0,1.14563626]
[1673399432565,0.69387219,17493.0,17492.0,1.14563626]
[1673399432783,0.42837114,17493.0,17492.0,1.14563626]
[1673399433067,0.78713814,17493.0,17492.0,1.14571885]
[1673399433550,0.78713814,17493.0,17492.0,1.14563626]
[1673399434327,0.78713814,17493.0,17492.0,1.14571885]
[1673399434846,0.78713814,17493.0,17492.0,1.14563626]
[1673399435603,0.78713814,17493.0,17492.0,1.71732526]
[1673399435863,0.53014432,17493.0,17492.0,1.71732526]
[1673399436368,0.53014432,17493.0,17492.0,1.71740785]
[1673399436742,0.17137732,17493.0,17492.0,1.71732526]
[1673399437403,0.17137732,17493.0,17492.0,1.71740785]
[1673399437667,0.53014432,17493.0,17492.0,1.71740785]
[1673399438187,0.17137732,17493.0,17492.0,1.71740785]
[1673399438481,1.13927815,17494.0,17492.0,1.71732526]
[1673399438728,0.17137732,17493.0,17492.0,1.71732526]
[1673399439018,0.53014432,17493.0,17492.0,1.71740785]
[1673399439281,0.53014432,17493.0,17492.0,1.71732526]
[1673399439556,0.17137732,17493.0,17492.0,1.71732526]
[1673399440067,0.17137732,17493.0,17492.0,1.71740785]
[1673399440318,0.42837114,17494.0,17492.0,1.71740785]
[1673399440572,0.17137732,17494.0,17492.0,2.01740785]
[1673399440834,0.17137732,17494.0,17492.0,2.61740785]
[1673399441159,0.17137732,17494.0,17493.0,0.3]
[1673399441386,0.17137732,17494.0,17493.0,1.443314]
[1673399441641,1.00954298,17495.0,17493.0,1.443314]
[1673399442189,0.59894911,17495.0,17494.0,0.2858]
[1673399442479,0.42833967,17495.0,17494.0,1.49194789]
[1673399442707,0.30634585,17495.0,17494.0,1.65544789]
[1673399442961,0.135,17495.0,17494.0,2.27129593]
[1673399443521,0.42833967,17496.0,17494.0,2.27129593]
[1673399443763,0.17134585,17496.0,17495.0,0.3]
[1673399444031,0.42833967,17496.0,17495.0,1.443182]
[1673399444288,0.17134585,17496.0,17495.0,1.443182]
[1673399444583,1.14086411,17497.0,17495.0,1.443182]
[1673399444584,0.97025467,17497.0,17495.0,1.443182]
[1673399445106,0.97025467,17497.0,17495.0,1.68077989]
[1673399445107,0.17134585,17497.0,17495.0,1.68077989]
[1673399445360,0.01722991,17499.0,17497.0,0.3]
[1673399445361,1.11999781,17499.0,17497.0,0.3]
[1673399445581,1.11999781,17499.0,17498.0,0.750421]
[1673399445582,0.18857576,17499.0,17498.0,0.750421]
[1673399445871,0.18857576,17499.0,17498.0,1.83636924]
[1673399446119,0.01722991,17499.0,17498.0,1.83636924]
[1673399446870,0.15422991,17499.0,17498.0,1.84036924]
[1673399447161,0.01722991,17499.0,17498.0,1.83636924]
[1673399448124,0.01722991,17499.0,17498.0,1.87836924]
[1673399448125,0.03222991,17499.0,17498.0,1.87836924]
[1673399448622,0.03222991,17499.0,17498.0,1.87842924]
[1673399451857,0.03222991,17499.0,17498.0,2.16415924]
[1673399453937,0.03222991,17499.0,17498.0,3.10248198]
[1673399454189,0.03222991,17499.0,17498.0,4.26971328]
[1673399454443,0.03213882,17499.0,17498.0,4.51971328]
[1673399454714,0.03213882,17499.0,17498.0,4.51965328]
[1673399454973,0.03213882,17499.0,17498.0,4.03783424]
[1673399455755,0.03213882,17499.0,17498.0,3.35242198]
[1673399456045,0.03213882,17499.0,17498.0,4.42838539]
[1673399456220,0.03213882,17499.0,17498.0,4.60290028]
[1673399456482,0.03213882,17499.0,17498.0,5.08477713]
[1673399456748,0.03213882,17499.0,17498.0,4.53692595]
[1673399459484,0.03213882,17499.0,17498.0,4.49098697]
[1673399459987,0.03213882,17499.0,17498.0,4.58002847]
[1673399461794,0.03213882,17499.0,17498.0,2.4003238]
[1673399462555,0.03213882,17499.0,17498.0,0.863493]
[1673399462556,0.96843018,17499.0,17498.0,0.863493]
[1673399462816,0.73075229,17499.0,17498.0,0.863493]
[1673399463645,0.73075229,17499.0,17498.0,0.292]
[1673399463899,1.08951929,17499.0,17498.0,0.292]
[1673399464672,1.38951929,17499.0,17498.0,1e-08]
[1673399464943,1.38951929,17499.0,17497.0,6e-05]
[1673399465179,0.658767,17498.0,17497.0,6e-05]
[1673399465972,1.15963546,17498.0,17497.0,6e-05]
[1673399466237,1.29745918,17498.0,17497.0,6e-05]
[1673399466485,1.30645918,17498.0,17497.0,0.00406]
[1673399466980,1.00645918,17498.0,17497.0,0.00406]
[1673399467491,0.99745918,17498.0,17497.0,6e-05]
[1673399467741,1.02945918,17498.0,17497.0,6e-05]
[1673399468491,1.32945918,17498.0,17497.0,6e-05]
[1673399469727,0.97069218,17498.0,17497.0,6e-05]
[1673399470205,0.97069218,17498.0,17497.0,1.1432506]
[1673399470206,0.032,17498.0,17497.0,1.1432506]
[1673399470448,0.032,17498.0,17497.0,1.66782591]
[1673399470704,0.032,17498.0,17497.0,2.26782591]
[1673399470979,0.032,17498.0,17497.0,2.56782591]
[1673399472499,0.032,17498.0,17497.0,2.55354591]
[1673399474021,0.032,17498.0,17497.0,2.91231291]
[1673399474583,0.032,17498.0,17497.0,3.21231291]
[1673399474843,0.032,17498.0,17497.0,2.91211431]
[1673399475291,0.032,17498.0,17497.0,2.55334731]
[1673399476574,0.032,17498.0,17497.0,2.91211431]
[1673399477810,0.032,17498.0,17497.0,3.21211431]
[1673399478320,0.032,17498.0,17497.0,2.91225291]
[1673399478825,0.032,17498.0,17497.0,3.21225291]
[1673399482328,0.032,17498.0,17497.0,3.25816024]
[1673399482590,0.032,17498.0,17497.0,2.90319181]
[1673399482847,0.032,17498.0,17497.0,3.51421838]
[1673399483121,0.032,17498.0,17497.0,3.68382526]
[1673399483122,0.027,17498.0,17497.0,3.68382526]
[1673399483364,0.027,17498.0,17497.0,3.58241363]
[1673399483612,0.027,17498.0,17497.0,3.58227503]
[1673399483880,0.027,17498.0,17497.0,3.5363677]
[1673399484116,0.027,17498.0,17497.0,3.2363677]
[1673399485157,0.027,17498.0,17497.0,2.8776007]
[1673399485671,0.027,17498.0,17497.0,3.2363677]
[1673399485906,0.027,17498.0,17497.0,3.5363677]
[1673399487189,0.027,17498.0,17497.0,3.5365063]
[1673399489456,0.027,17498.0,17497.0,2.8511776]
[1673399489713,0.027,17498.0,17497.0,3.6810953]
[1673399489972,0.027,17498.0,17497.0,3.61473215]
[1673399490482,0.027,17498.0,17497.0,4.21917797]
[1673399490746,0.027,17498.0,17497.0,3.61473215]
[1673399490995,0.027,17498.0,17497.0,3.86914248]
[1673399491520,0.027,17498.0,17497.0,4.27615042]
[1673399491763,0.027,17498.0,17497.0,4.10654354]
[1673399493574,0.027,17498.0,17497.0,4.27615042]
[1673399493828,0.027,17498.0,17497.0,4.23024309]
[1673399494633,0.027,17498.0,17497.0,4.06063621]
[1673399497221,0.027,17498.0,17497.0,4.23024309]
[1673399498516,0.26467789,17498.0,17497.0,3.00308994]
[1673399498743,0.027,17498.0,17497.0,2.64432294]
[1673399498991,0.027,17498.0,17497.0,2.04432294]
[1673399501071,0.027,17498.0,17497.0,2.29432294]
[1673399502105,0.027,17498.0,17497.0,2.29446154]
[1673399503097,0.027,17498.0,17497.0,2.00856294]
[1673399504380,0.70517751,17498.0,17497.0,1.43703694]
[1673399504613,0.87652336,17498.0,17497.0,0.25]
[1673399504882,1.13351718,17498.0,17497.0,0.25]
[1673399505383,1.49228418,17498.0,17497.0,0.25]
[1673399506151,1.13351718,17498.0,17497.0,0.25]
[1673399506656,1.66289362,17498.0,17497.0,0.25]
[1673399508484,1.49215196,17498.0,17497.0,0.25]
[1673399510508,0.87639114,17498.0,17497.0,0.25]
[1673399511007,1.23515814,17498.0,17497.0,0.25]
[1673399511494,0.87639114,17498.0,17497.0,0.25]
[1673399513125,1.23515814,17498.0,17497.0,0.25]
[1673399513879,1.49215196,17498.0,17497.0,0.25]
[1673399515714,1.13338496,17498.0,17497.0,0.25]
[1673399516254,1.66289362,17498.0,17497.0,0.25]
[1673399516749,1.49205205,17498.0,17497.0,0.25]
[1673399517256,1.13328505,17498.0,17497.0,0.25]
[1673399517780,1.49205205,17498.0,17497.0,0.25]
[1673399518272,1.13328505,17498.0,17497.0,0.25]
[1673399518564,0.87629123,17498.0,17497.0,0.25]
[1673399518784,1.23505823,17498.0,17497.0,0.25]
[1673399519041,0.70517751,17498.0,17497.0,0.25]
[1673399519565,0.87629123,17498.0,17497.0,0.25]
[1673399522676,0.87059123,17498.0,17497.0,0.55]
[1673399522964,0.87059123,17498.0,17497.0,0.25]
[1673399525020,0.69947751,17498.0,17497.0,0.25]
[1673399525722,0.87059123,17498.0,17497.0,0.25]
[1673399526466,0.69947751,17498.0,17497.0,0.25]
[1673399530858,0.87059123,17498.0,17497.0,0.25]
[1673399531113,1.48635205,17498.0,17497.0,0.25]
[1673399531399,1.65719362,17498.0,17497.0,0.25]
[1673399533952,1.29842662,17498.0,17497.0,0.25]
[1673399534455,2.16843383,17498.0,17497.0,0.25]
[1673399534719,2.52720083,17498.0,17497.0,0.25]
[1673399534978,3.02783565,17498.0,17497.0,0.25]
[1673399535236,2.52720083,17498.0,17497.0,0.25]
[1673399535741,1.82764391,17498.0,17497.0,0.25]
[1673399536524,3.67059117,17498.0,17497.0,0.25]
[1673399537577,3.67059117,17498.0,17497.0,0.3027596]
[1673399538398,3.32863588,17498.0,17497.0,0.3027596]
[1673399539233,3.67115782,17498.0,17497.0,0.3027596]
[1673399540433,3.32863588,17498.0,17497.0,0.3027596]
[1673399541231,4.43280293,17498.0,17497.0,0.3027596]
[1673399541485,3.93245017,17498.0,17497.0,0.3027596]
[1673399542008,5.02705974,17498.0,17497.0,0.3027596]
[1673399544230,4.43289667,17498.0,17497.0,0.3027596]
[1673399544477,5.07184272,17498.0,17497.0,0.3027596]
[1673399544986,4.43289667,17498.0,17497.0,0.3027596]
[1673399545502,0.29991416,17496.0,17495.0,0.04919428]
[1673399545751,1.92754687,17496.0,17495.0,0.04919428]
[1673399545999,3.77062795,17496.0,17493.0,2.02041558]
[1673399546252,1.30233982,17495.0,17493.0,2.02041558]
[1673399546500,0.94357282,17495.0,17493.0,2.02041558]
[1673399546752,0.94357282,17495.0,17493.0,2.0205542]
[1673399547013,0.94357282,17495.0,17493.0,2.5922112]
[1673399547266,0.68674351,17495.0,17493.0,2.5922112]
[1673399547518,0.51552397,17495.0,17493.0,2.59207258]
[1673399547794,0.51552397,17495.0,17493.0,2.5922112]
[1673399547795,0.68674351,17495.0,17493.0,2.5922112]
[1673399548037,0.68674351,17495.0,17493.0,2.59207258]
[1673399548289,0.52952397,17495.0,17493.0,2.60107258]
[1673399548813,0.014,17495.0,17494.0,0.00013862]
[1673399549066,0.014,17495.0,17494.0,0.3]
[1673399550100,0.56137976,17495.0,17494.0,0.571624]
[1673399550364,0.68223653,17494.0,17493.0,1.171657]
[1673399550864,1.04100353,17494.0,17493.0,1.171657]
[1673399551111,0.68223653,17494.0,17493.0,1.171657]
[1673399551368,0.68223653,17494.0,17493.0,0.571657]
[1673399551616,0.68223653,17494.0,17493.0,0.580657]
[1673399551617,0.69623653,17494.0,17493.0,0.580657]
[1673399553075,0.69623653,17494.0,17493.0,0.009]
[1673399554351,0.69623653,17494.0,17493.0,0.008]
[1673399554595,0.69623653,17494.0,17492.0,2.01914518]
[1673399554596,0.68223653,17494.0,17492.0,1.73330518]
[1673399554850,0.68223653,17494.0,17492.0,2.31914518]
[1673399555116,0.69623653,17494.0,17493.0,0.008]
[1673399556379,0.68223653,17494.0,17492.0,2.03330518]
[1673399556632,0.69623653,17494.0,17492.0,2.04130518]
[1673399556897,0.68223653,17494.0,17492.0,2.03330518]
[1673399557133,0.69623653,17494.0,17493.0,0.008]
[1673399557415,0.69623653,17494.0,17493.0,0.3]
[1673399557683,0.69623653,17494.0,17493.0,0.9]
[1673399557684,0.68223653,17494.0,17493.0,0.9]
[1673399558975,0.68223653,17494.0,17493.0,0.6]
[1673399559804,0.69623653,17494.0,17493.0,0.608]
[1673399560782,1.05500353,17494.0,17493.0,0.608]
[1673399561003,1.22622307,17494.0,17493.0,0.608]
[1673399563278,1.21122307,17494.0,17493.0,0.608]
[1673399564060,2.82338322,17494.0,17493.0,0.008]
[1673399564308,2.99460392,17494.0,17493.0,0.008]
[1673399565094,3.16870478,17494.0,17493.0,0.008]
[1673399565321,3.86249911,17494.0,17492.0,0.05002491]
[1673399565582,1.44874011,17493.0,17492.0,0.05002491]
[1673399565839,1.74874011,17493.0,17492.0,0.05002491]
[1673399566087,1.74874011,17493.0,17492.0,0.00234645]
[1673399566338,1.24984777,17493.0,17492.0,0.00234645]
[1673399566594,1.81191268,17493.0,17492.0,0.00334645]
[1673399566844,2.47035348,17493.0,17492.0,0.00234645]
[1673399567135,1.71491268,17493.0,17492.0,0.00334645]
[1673399567353,1.62135816,17493.0,17492.0,0.00334645]
[1673399567610,2.26735348,17493.0,17492.0,0.00334645]
[1673399568619,2.43838632,17493.0,17492.0,0.00334645]
[1673399569394,1.71677295,17493.0,17492.0,0.00334645]
[1673399569893,2.01677295,17493.0,17492.0,0.00334645]
[1673399570147,2.67659185,17493.0,17492.0,0.00334645]
[1673399570398,2.01677295,17493.0,17489.0,0.93659022]
[1673399570641,1.62340259,17492.0,17489.0,0.93659022]
[1673399570889,1.50231348,17492.0,17489.0,0.93659022]
[1673399571360,1.5307783,17492.0,17489.0,0.93659022]
[1673399571644,0.358767,17491.0,17489.0,0.94259022]
[1673399571897,2.04100465,17492.0,17489.0,0.64259022]
[1673399571898,1.78445619,17492.0,17489.0,0.64259022]
[1673399572155,0.66072035,17490.0,17489.0,0.64259022]
[1673399572405,0.66992804,17492.0,17489.0,0.63659022]
[1673399572665,0.6256206,17492.0,17491.0,0.6]
[1673399574990,1.0093876,17492.0,17491.0,0.601]
[1673399575237,0.6506206,17492.0,17491.0,0.601]
[1673399575471,1.0093876,17492.0,17491.0,0.601]
[1673399575736,0.6506206,17492.0,17491.0,0.601]
[1673399578725,1.0093876,17492.0,17491.0,0.601]
[1673399579232,1.1168207,17492.0,17491.0,0.001]
[1673399579483,2.18260201,17492.0,17491.0,0.001]
[1673399579730,1.94849887,17492.0,17491.0,0.001]
[1673399579973,1.44960653,17492.0,17491.0,0.001]
[1673399580282,1.49305807,17492.0,17491.0,0.001]
[1673399580767,1.19305807,17492.0,17491.0,0.601]
[1673399581543,1.35655807,17492.0,17491.0,0.601]
[1673399583296,1.61310653,17492.0,17491.0,0.601]
[1673399583555,1.35655807,17492.0,17491.0,0.601]
[1673399586601,1.35655807,17492.0,17491.0,0.64044854]
[1673399587920,2.28297635,17492.0,17491.0,0.04044854]
[1673399590085,1.78408401,17492.0,17491.0,0.04044854]
[1673399590236,2.28297635,17492.0,17491.0,0.04044854]
[1673399590503,3.12557791,17492.0,17491.0,0.04044854]
[1673399590750,2.45447819,17492.0,17491.0,0.04044854]
[1673399591010,2.28319031,17492.0,17491.0,0.04044854]
[1673399591516,2.45447819,17492.0,17491.0,0.04044854]
[1673399591768,3.77042171,17492.0,17491.0,0.04044854]
[1673399592281,4.26931405,17492.0,17491.0,0.04044854]
[1673399592563,4.71711409,17492.0,17491.0,0.04044854]
[1673399592802,4.26931405,17492.0,17491.0,0.04044854]
[1673399593570,3.63111065,17492.0,17491.0,0.04044854]
[1673399593836,4.06614785,17492.0,17491.0,0.04044854]
[1673399594333,3.4525455,17492.0,17491.0,0.04044854]
[1673399595350,3.98391805,17492.0,17491.0,0.04044854]
[1673399595601,3.4525455,17492.0,17491.0,0.04044854]
[1673399596380,4.0147531,17492.0,17491.0,0.04044854]
[1673399597396,3.53129662,17492.0,17491.0,0.04044854]
[1673399597646,1.97327916,17492.0,17491.0,0.04044854]
[1673399597896,1.54522886,17492.0,17491.0,0.04044854]
[1673399598935,1.37400139,17492.0,17491.0,0.04044854]
[1673399599187,1.54522886,17492.0,17491.0,0.04044854]
[1673399601472,3.52964155,17492.0,17491.0,0.04044854]
[1673399601963,3.52964155,17492.0,17491.0,1e-08]
[1673399602206,4.02643915,17492.0,17491.0,1e-08]
[1673399602452,4.02643915,17492.0,17491.0,0.04196686]
[1673399603422,3.18720569,17492.0,17491.0,0.04196686]
[1673399603668,3.68400329,17492.0,17491.0,0.04196686]
[1673399605188,2.82843869,17492.0,17491.0,0.04196686]
[1673399605436,3.18720569,17492.0,17491.0,0.04196686]
[1673399605704,3.68400329,17492.0,17491.0,0.04196686]
[1673399605954,4.02674683,17492.0,17491.0,0.04196686]
[1673399606212,3.32523629,17492.0,17491.0,0.04196686]
[1673399606471,3.68400329,17492.0,17491.0,0.04196686]
[1673399607955,3.65900329,17492.0,17491.0,0.04196686]
[1673399608376,3.75500329,17492.0,17491.0,0.04196686]
[1673399608877,3.85100329,17492.0,17491.0,0.04196686]
[1673399610920,3.35420569,17492.0,17491.0,0.04196686]
[1673399611160,3.85100329,17492.0,17491.0,0.04196686]
[1673399611674,3.35420569,17492.0,17491.0,0.04196686]
[1673399612180,3.85100329,17492.0,17491.0,0.04196686]
[1673399613669,3.65900329,17492.0,17491.0,0.04196686]
[1673399613916,3.79300329,17492.0,17491.0,0.04196686]
[1673399614173,4.36408342,17492.0,17491.0,0.04196686]
[1673399614443,3.93603312,17492.0,17491.0,0.04196686]
[1673399614956,3.23354017,17492.0,17491.0,0.04196686]
[1673399615545,4.27193876,17492.0,17491.0,0.04196686]
[1673399615723,3.26019667,17492.0,17491.0,0.04196686]
[1673399615970,3.32613949,17492.0,17491.0,0.04196686]
[1673399616474,3.84108398,17492.0,17491.0,0.04196686]
[1673399616738,2.82934189,17492.0,17491.0,0.61368886]
[1673399616994,3.32613949,17492.0,17491.0,0.61368886]
[1673399619357,4.22519238,17492.0,17491.0,0.61368886]
[1673399619612,3.72839478,17492.0,17491.0,0.61368886]
[1673399619875,3.72839478,17492.0,17491.0,0.04196686]
[1673399621657,4.22519238,17492.0,17491.0,0.04196686]
[1673399625121,3.70173828,17492.0,17491.0,0.04196686]
[1673399626156,4.02873828,17492.0,17491.0,0.04196686]
[1673399626676,4.67506314,17492.0,17491.0,0.04196686]
[1673399627740,4.02873828,17492.0,17491.0,0.04196686]
[1673399627995,4.56039665,17492.0,17491.0,0.04196686]
[1673399628583,4.02873828,17492.0,17491.0,0.04196686]
[1673399629011,4.67705013,17492.0,17491.0,0.04196686]
[1673399629263,4.02873828,17492.0,17491.0,0.04196686]
[1673399629770,0.3,17491.0,17490.0,0.52917474]
[1673399630050,0.3,17491.0,17489.0,0.571759]
[1673399630051,2.556223,17491.0,17489.0,0.571759]
[1673399630326,1.45676117,17490.0,17489.0,1.143523]
[1673399631047,2.45775844,17490.0,17489.0,1.143523]
[1673399631619,2.11499321,17490.0,17489.0,1.143523]
[1673399631871,2.45772569,17490.0,17489.0,1.143523]
[1673399632142,2.11499321,17490.0,17489.0,1.143523]
[1673399632407,2.45772539,17490.0,17489.0,1.143523]
[1673399632677,2.62968865,17490.0,17489.0,1.143523]
[1673399632966,2.13699321,17490.0,17489.0,0.571764]
[1673399633212,2.47972578,17490.0,17489.0,0.571764]
[1673399633986,3.2667438,17490.0,17489.0,0.571764]
[1673399634256,2.92401123,17490.0,17489.0,0.571764]
[1673399635279,2.49555163,17490.0,17488.0,0.62017367]
[1673399635536,2.49555163,17490.0,17488.0,0.04838167]
[1673399635537,2.29191168,17489.0,17488.0,0.04838167]
[1673399636063,3.43577419,17489.0,17487.0,1.17539357]
[1673399636377,1.36163223,17488.0,17487.0,1.17539357]
[1673399636582,1.00286389,17488.0,17487.0,1.74724657]
[1673399637592,0.74589066,17488.0,17487.0,1.74724657]
[1673399638337,0.76089066,17488.0,17487.0,1.74724657]
[1673399639367,0.58957651,17488.0,17487.0,1.74724657]
[1673399639618,0.76089066,17488.0,17487.0,1.74724657]
[1673399639885,1.01786389,17488.0,17487.0,1.74724657]
[1673399640143,1.01786389,17488.0,17487.0,1.14724657]
[1673399640406,1.18917848,17488.0,17487.0,1.14724657]
[1673399641197,1.17417848,17488.0,17487.0,1.14724657]
[1673399641541,1.18917848,17488.0,17487.0,1.14724657]
[1673399641723,1.34360671,17488.0,17487.0,1.14724657]
[1673399641995,1.01797753,17488.0,17487.0,1.14724657]
[1673399642750,4.06333142,17488.0,17487.0,0.00354457]
[1673399643510,3.89983142,17488.0,17487.0,0.00354457]
[1673399643725,3.47154549,17488.0,17487.0,0.00354457]
[1673399644019,3.89957793,17488.0,17487.0,0.00354457]
[1673399644275,3.88257793,17488.0,17487.0,0.00354457]
[1673399644542,3.90457793,17488.0,17487.0,0.00354457]
[1673399645860,3.41188249,17488.0,17487.0,0.00354457]
[1673399646083,3.75421368,17488.0,17487.0,0.00354457]
[1673399646357,3.7542109,17488.0,17487.0,0.00354457]
[1673399647137,2.61024155,17488.0,17487.0,0.00354457]
[1673399648207,1.21637367,17488.0,17487.0,0.00354457]
[1673399648459,2.06783611,17488.0,17487.0,0.00354457]
[1673399648971,1.70906911,17488.0,17487.0,0.00354457]
[1673399649229,2.34583611,17488.0,17487.0,0.00354457]
[1673399650249,2.44183611,17488.0,17487.0,0.00354457]
[1673399651038,2.44183611,17488.0,17487.0,0.57539757]
[1673399651981,2.44183611,17488.0,17487.0,0.00354457]
[1673399652778,2.31295513,17488.0,17487.0,0.57539757]
[1673399653047,1.95418813,17488.0,17487.0,0.57539757]
[1673399653297,2.14183611,17488.0,17487.0,0.57539757]
[1673399655427,2.31316855,17488.0,17487.0,0.57539757]
[1673399655688,4.40578025,17488.0,17487.0,0.00354457]
[1673399655950,4.06344906,17488.0,17487.0,0.00354457]
[1673399656209,0.96428318,17487.0,17486.0,0.32894414]
[1673399656456,2.41466457,17487.0,17486.0,0.90080714]
[1673399656933,1.88476952,17487.0,17486.0,1e-08]
[1673399657173,2.26553652,17487.0,17486.0,0.57185501]
[1673399657419,2.43666457,17487.0,17486.0,1.14371801]
[1673399657664,2.05589757,17487.0,17486.0,1.14371801]
[1673399657887,2.51066457,17487.0,17486.0,1.14371801]
[1673399658135,2.22702848,17487.0,17486.0,1.14371801]
[1673399658397,2.31539757,17487.0,17486.0,0.57186301]
[1673399658639,3.07773495,17487.0,17486.0,0.57186301]
[1673399659383,3.07773495,17487.0,17486.0,1e-08]
[1673399659384,4.51124486,17487.0,17486.0,1e-08]
[1673399659885,3.58242924,17487.0,17486.0,1e-08]
[1673399660142,4.10051355,17487.0,17485.0,0.05250207]
[1673399660392,3.38539569,17486.0,17485.0,0.05250207]
[1673399660648,3.38539569,17486.0,17485.0,0.00362665]
[1673399661159,2.38073952,17486.0,17485.0,0.00362665]
[1673399661404,3.66489622,17486.0,17485.0,0.00362665]
[1673399661647,4.80903958,17486.0,17485.0,0.00362665]
[1673399662155,3.03336537,17486.0,17485.0,0.00362665]
[1673399662404,3.07493094,17486.0,17485.0,0.00362665]
[1673399662655,4.2812384,17486.0,17485.0,0.00362665]
[1673399662901,3.87789821,17486.0,17485.0,0.00362665]
[1673399663147,3.74289821,17486.0,17485.0,0.00362665]
[1673399663404,3.87689821,17486.0,17485.0,0.00362665]
[1673399664413,4.5202422,17486.0,17485.0,0.00362665]
[1673399664919,3.07655126,17486.0,17485.0,0.00362665]
[1673399665178,2.90535122,17486.0,17485.0,0.00362665]
[1673399665423,2.77135122,17486.0,17485.0,0.00362665]
[1673399665671,2.90635122,17486.0,17485.0,0.00362665]
[1673399665936,2.73532771,17486.0,17485.0,0.00362665]
[1673399666466,1.30814784,17486.0,17485.0,1.74746265]
[1673399666721,0.77834399,17486.0,17485.0,1.74746265]
[1673399667489,0.135,17486.0,17485.0,2.30742526]
[1673399667744,0.135,17486.0,17485.0,2.82829226]
[1673399668012,0.135,17486.0,17485.0,2.82986923]
[1673399668279,0.135,17486.0,17485.0,2.82829226]
[1673399668529,0.135,17486.0,17485.0,2.46952526]
[1673399668810,0.135,17486.0,17485.0,2.82829226]
[1673399670381,0.135,17486.0,17485.0,2.46952526]
[1673399671425,0.135,17486.0,17485.0,2.63272526]
[1673399671663,0.135,17486.0,17485.0,2.99149226]
[1673399675777,0.135,17486.0,17485.0,3.29149226]
[1673399676057,0.135,17486.0,17485.0,2.99149226]
[1673399676285,0.135,17486.0,17485.0,2.99157109]
[1673399677340,0.135,17486.0,17485.0,3.29157109]
[1673399678081,0.135,17486.0,17485.0,2.99149226]
[1673399678594,0.135,17486.0,17485.0,2.99157109]
[1673399679930,0.135,17486.0,17485.0,2.99149226]
[1673399681420,0.135,17486.0,17485.0,2.82939226]
[1673399682441,0.135,17486.0,17485.0,3.12939226]
[1673399683189,0.135,17486.0,17485.0,2.82939226]
[1673399684221,0.135,17486.0,17485.0,2.47062526]
[1673399684492,0.135,17486.0,17485.0,2.47070409]
[1673399684749,0.135,17486.0,17485.0,2.82939226]
[1673399685506,0.135,17486.0,17485.0,3.12947109]
[1673399685752,0.135,17486.0,17485.0,3.12939226]
[1673399685997,0.135,17486.0,17485.0,3.41534226]
[1673399686251,0.135,17486.0,17485.0,3.11534226]
[1673399686508,0.135,17486.0,17485.0,3.11542109]
[1673399687264,0.135,17486.0,17485.0,2.93598209]
[1673399687559,0.135,17486.0,17485.0,2.93590326]
[1673399687773,0.135,17486.0,17485.0,2.75657526]
[1673399690862,0.135,17486.0,17485.0,3.11534226]
[1673399691113,0.135,17486.0,17485.0,3.41542109]
[1673399691925,0.1349395,17486.0,17485.0,3.41534226]
[1673399694474,0.1349395,17486.0,17485.0,3.11534226]
[1673399694722,0.1349395,17486.0,17485.0,3.41542109]
[1673399694970,0.1349395,17486.0,17485.0,3.11534226]
[1673399695740,0.1349395,17486.0,17485.0,3.41542109]
[1673399696998,0.1349395,17486.0,17485.0,3.41534226]
[1673399698232,0.1349395,17486.0,17485.0,3.11534226]
[1673399698729,0.1349395,17486.0,17485.0,2.15657526]
[1673399699477,0.1349395,17486.0,17485.0,2.51534226]
[1673399699726,0.1349395,17486.0,17485.0,2.51542109]
[1673399699984,0.1349395,17486.0,17485.0,2.76542109]
[1673399700507,0.1349395,17486.0,17485.0,3.06542109]
[1673399701022,0.1349395,17486.0,17485.0,2.73805637]
[1673399701289,0.1349395,17486.0,17485.0,3.66636313]
[1673399701816,0.1349395,17486.0,17485.0,3.72604734]
[1673399702079,0.1349395,17486.0,17485.0,3.89565423]
[1673399702625,0.1349395,17486.0,17485.0,3.49823588]
[1673399702918,0.1349395,17486.0,17485.0,4.03411253]
[1673399703170,0.1349395,17486.0,17485.0,3.91102548]
[1673399703463,0.1349395,17486.0,17485.0,3.89393186]
[1673399703722,0.1349395,17486.0,17485.0,3.77596372]
[1673399703988,0.1349395,17486.0,17485.0,3.52155339]
[1673399704261,0.1349395,17486.0,17485.0,4.05726372]
[1673399704785,5e-07,17486.0,17485.0,3.47547974]